[Event "LJ Slovak Open 2022"]
[Site "Liptovsky Jan"]
[Date "2022.06.24"]
[Round "3.37"]
[White "Ciglian, Michal"]
[Black "Szabo, Marian"]
[Result "1/2-1/2"]
[ECO "E61"]
[WhiteElo "1704"]
[BlackElo "1467"]
[Annotator "NA RC"]
[PlyCount "129"]
[EventDate "2022.06.23"]
[EventType "swiss"]
[EventCountry "SVK"]
[SourceTitle "playchess.com"]
[Source "ChessBase"]
[SourceQuality "1"]
[TimeControl "3600+30"]

1. c4 {[%emt 0:00:12]} e6 {[%emt 0:00:11]} 2. Nc3 {[%emt 0:00:21]} g6 {[%emt 0:00:15]} 3. Nf3 {[%emt 0:00:19]} Bg7 {[%emt 0:00:00]} 4. d4 {[%emt 0:00:36]} Nf6 {[%emt 0:01:00]} 5. e4 {[%emt 0:02:06]} d6 {[%emt 0:00:30]} 6. Bd3 {[%emt 0:00:30]} O-O {[%emt 0:00:30]} 7. O-O {[%emt 0:00:30]} b6 {[%emt 0:00:30]} 8. Bd2 {[%emt 0:00:30]} Nbd7 {[%emt 0:00:30]} 9. Rc1 {[%emt 0:00:30]} Bb7 {[%emt 0:04:18]} 10. Bg5 {[%emt 0:01:45]} c5 {[%emt 0:00:30]} 11. d5 {[%emt 0:01:43]} e5 {[%emt 0:05:15]} 12. Be3 {[%emt 0:02:59]} a6 {[%emt 0:00:36]} 13. h3 {[%emt 0:01:09]} Re8 {[%emt 0:02:40]} 14. Nh2 {[%emt 0:02:54]} Bc8 {[%emt 0:01:08]} 15. Qd2 {[%emt 0:01:46]} Re7 {[%emt 0:01:46]} 16. a3 {[%emt 0:04:15]} Qf8 {[%emt 0:03:07]} 17. b4 {[%emt 0:00:37]} Nh5 {[%emt 0:00:30]} 18. Qc2 {[%emt 0:03:30]} Qd8 {[%emt 0:02:19]} 19. Ne2 {[%emt 0:02:44]} Re8 {[%emt 0:01:16]} 20. g3 {[%emt 0:03:01]} Nf8 {[%emt 0:11:14]} 21. Kg2 {[%emt 0:02:10]} h6 {[%emt 0:00:30]} 22. f4 {[%emt 0:01:38]} Ra7 {[%emt 0:07:11]} 23. Qd2 {[%emt 0:01:41]} Qd7 {[%emt 0:00:29]} 24. g4 {[%emt 0:01:46]} Nf6 {[%emt 0:01:16]} 25. fxe5 {[%emt 0:00:26]} Rxe5 {[%emt 0:00:46]} 26. Ng3 {[%emt 0:00:36]} Kh7 {[%emt 0:00:30]} 27. Nf3 {[%emt 0:03:24]} Re7 {[%emt 0:01:30]} 28. Rh1 {[%emt 0:01:02]} Qa4 {[%emt 0:00:22]} 29. g5 {[%emt 0:04:55]} N6d7 {[%emt 0:01:27]} 30. gxh6 {[%emt 0:02:00]} Bf6 {[%emt 0:00:30]} 31. Bf4 {[%emt 0:00:30]} Ne5 {[%emt 0:00:50]} 32. Nxe5 {[%emt 0:00:23]} Bxe5 {[%emt 0:00:29]} 33. Bxe5 {[%emt 0:00:41]} Rxe5 {[%emt 0:00:16]} 34. bxc5 {[%emt 0:00:50]} bxc5 {[%emt 0:00:19]} 35. Rc3 {[%emt 0:01:52]} Rb7 {[%emt 0:00:38]} 36. Rb1 {[%emt 0:00:59]} Ree7 {[%emt 0:00:23]} 37. Bc2 {[%emt 0:00:57]} Qd7 {[%emt 0:00:21]} 38. Nf1 {[%emt 0:01:03]} Rxb1 {[%emt 0:00:15]} 39. Bxb1 {[%emt 0:00:05]} Qb7 {[%emt 0:00:51]} 40. Bd3 {[%emt 0:02:31]} Bd7 {[%emt 0:00:40]} 41. Bc2 {[%emt 0:01:58]} Re5 {[%emt 0:04:16]} 42. Rb3 {[%emt 0:00:29]} Qc8 {[%emt 0:00:10]} 43. Qf4 {[%emt 0:00:26]} Qe8 {[%emt 0:00:50]} 44. Rf3 {[%emt 0:03:29]} f5 {[%emt 0:01:12]} 45. exf5 {[%emt 0:00:58]} Re2+ {[%emt 0:00:51]} 46. Rf2 {[%emt 0:00:10]} Rxf2+ {[%emt 0:00:26]} 47. Qxf2 {[%emt 0:00:10]} Kxh6 {[%emt 0:00:29]} 48. Qf4+ {[%emt 0:01:56]} Kg7 {[%emt 0:00:28]} 49. f6+ {[%emt 0:00:55]} Kf7 {[%emt 0:00:40]} 50. Ne3 {[%emt 0:00:55]} Qe5 {[%emt 0:00:59]} 51. Qxe5 {[%emt 0:00:49]} dxe5 {[%emt 0:00:03]} 52. Kg3 {[%emt 0:00:41]} Kxf6 {[%emt 0:00:18]} 53. Ng4+ {[%emt 0:00:40]} Bxg4 {[%emt 0:00:31]} 54. Kxg4 {[%emt 0:00:03]} Nd7 {[%emt 0:00:31]} 55. h4 {[%emt 0:00:33]} a5 {[%emt 0:00:06]} 56. a4 {[%emt 0:00:10]} Nb6 {[%emt 0:00:18]} 57. Bb3 {[%emt 0:00:07]} e4 {[%emt 0:00:30]} 58. Kf4 {[%emt 0:00:12]} e3 {[%emt 0:00:38]} 59. Kxe3 {[%emt 0:00:18]} Ke5 {[%emt 0:00:52]} 60. Kd3 {[%emt 0:00:10]} Kf4 {[%emt 0:00:31]} 61. Bc2 {[%emt 0:00:46]} Kg4 {[%emt 0:00:37]} 62. Kc3 {[%emt 0:00:09]} Kxh4 {[%emt 0:00:22]} 63. Bxg6 {[%emt 0:00:07]} Nxa4+ {[%emt 0:00:30]} 64. Kb3 {[%emt 0:00:06]} Nb6 {[%emt 0:00:21]} 65. Be8 {[%emt 0:00:15]} 1/2-1/2

[Event "LJ Slovak Open 2022"]
[Site "Liptovsky Jan"]
[Date "2022.06.24"]
[Round "3.38"]
[White "Staron, Ladislav"]
[Black "Pisarcik, Richard"]
[Result "1-0"]
[ECO "A52"]
[WhiteElo "1695"]
[BlackElo "1343"]
[Annotator "NA RC"]
[PlyCount "152"]
[EventDate "2022.06.23"]
[EventType "swiss"]
[EventCountry "SVK"]
[SourceTitle "playchess.com"]
[Source "ChessBase"]
[SourceQuality "1"]
[TimeControl "3600+30"]

1. d4 {[%emt 0:00:15]} Nf6 {[%emt 0:00:23]} 2. c4 {[%emt 0:00:08]} e5 {[%emt 0:00:30]} 3. dxe5 {[%emt 0:01:12]} Ng4 {[%emt 0:00:37]} 4. Nf3 {[%emt 0:00:28]} Nc6 {[%emt 0:00:33]} 5. Bf4 {[%emt 0:01:54]} Bb4+ {[%emt 0:00:42]} 6. Nc3 {[%emt 0:00:30]} Qe7 {[%emt 0:00:27]} 7. e3 {[%emt 0:01:06]} Ngxe5 {[%emt 0:00:17]} 8. Nxe5 {[%emt 0:05:14]} Nxe5 {[%emt 0:00:08]} 9. Rc1 {[%emt 0:02:51]} h5 {[%emt 0:03:15]} 10. h3 {[%emt 0:01:00]} Ng6 {[%emt 0:00:44]} 11. Bh2 {[%emt 0:00:45]} h4 {[%emt 0:01:34]} 12. Be2 {[%emt 0:00:45]} d6 {[%emt 0:00:26]} 13. a3 {[%emt 0:00:11]} Bxc3+ {[%emt 0:00:51]} 14. Rxc3 {[%emt 0:00:12]} Be6 {[%emt 0:01:57]} 15. O-O {[%emt 0:00:19]} Nf8 {[%emt 0:01:10]} 16. Bf3 {[%emt 0:00:51]} Rb8 {[%emt 0:01:06]} 17. Qa4+ {[%emt 0:01:24]} Nd7 {[%emt 0:05:15]} 18. Qxa7 {[%emt 0:03:51]} Qg5 {[%emt 0:01:23]} 19. Kh1 {[%emt 0:02:21]} Qf6 {[%emt 0:01:32]} 20. Qd4 {[%emt 0:02:36]} Ne5 {[%emt 0:02:35]} 21. Be2 {[%emt 0:03:35]} Rh6 {[%emt 0:03:34]} 22. f4 {[%emt 0:02:17]} Nd7 {[%emt 0:00:39]} 23. Qxf6 {[%emt 0:01:03]} Nxf6 {[%emt 0:00:12]} 24. Bd3 {[%emt 0:03:25]} Ke7 {[%emt 0:02:35]} 25. e4 {[%emt 0:02:17]} Rbh8 {[%emt 0:03:35]} 26. f5 {[%emt 0:03:16]} Bd7 {[%emt 0:00:14]} 27. Re1 {[%emt 0:04:03]} Nh5 {[%emt 0:01:25]} 28. e5 {[%emt 0:02:12]} dxe5 {[%emt 0:00:29]} 29. Bxe5 {[%emt 0:00:35]} Kd8 {[%emt 0:00:17]} 30. Rcc1 {[%emt 0:03:40]} Ng3+ {[%emt 0:01:08]} 31. Bxg3 {[%emt 0:00:40]} hxg3 {[%emt 0:00:05]} 32. Be4 {[%emt 0:01:52]} g6 {[%emt 0:02:29]} 33. Rcd1 {[%emt 0:01:40]} Kc8 {[%emt 0:00:33]} 34. Bxb7+ {[%emt 0:02:16]} Kxb7 {[%emt 0:02:29]} 35. Rxd7 {[%emt 0:00:05]} g5 {[%emt 0:01:17]} 36. Ree7 {[%emt 0:03:38]} Rh4 {[%emt 0:03:29]} 37. Rxc7+ {[%emt 0:00:28]} Kb8 {[%emt 0:01:21]} 38. Rb7+ {[%emt 0:06:21]} Ka8 {[%emt 0:00:37]} 39. Ra7+ {[%emt 0:00:10]} Kb8 {[%emt 0:00:09]} 40. Reb7+ {[%emt 0:00:49]} Kc8 {[%emt 0:00:44]} 41. Rc7+ {[%emt 0:00:23]} Kd8 {[%emt 0:00:15]} 42. Rxf7 {[%emt 0:01:55]} Rxc4 {[%emt 0:01:24]} 43. Ra8+ {[%emt 0:00:23]} Rc8 {[%emt 0:00:11]} 44. Rxc8+ {[%emt 0:00:15]} Kxc8 {[%emt 0:00:17]} 45. Re7 {[%emt 0:00:23]} Rd8 {[%emt 0:01:06]} 46. Re1 {[%emt 0:00:10]} Rf8 {[%emt 0:00:37]} 47. Rf1 {[%emt 0:00:38]} Kd7 {[%emt 0:05:35]} 48. Rf3 {[%emt 0:00:12]} Kd6 {[%emt 0:00:11]} 49. Rxg3 {[%emt 0:00:06]} Rxf5 {[%emt 0:00:01]} 50. Kh2 {[%emt 0:00:38]} Ke6 {[%emt 0:00:45]} 51. Rc3 {[%emt 0:00:42]} Kd5 {[%emt 0:00:30]} 52. b4 {[%emt 0:01:24]} Kd4 {[%emt 0:01:05]} 53. Rc2 {[%emt 0:03:15]} Re5 {[%emt 0:00:30]} 54. Ra2 {[%emt 0:00:30]} Kc3 {[%emt 0:00:15]} 55. Rf2 {[%emt 0:00:31]} Kb3 {[%emt 0:00:12]} 56. Rf3+ {[%emt 0:00:08]} Ka4 {[%emt 0:00:04]} 57. Kg3 {[%emt 0:00:40]} Rd5 {[%emt 0:00:23]} 58. Kg4 {[%emt 0:01:32]} Re5 {[%emt 0:00:14]} 59. g3 {[%emt 0:00:18]} Rd5 {[%emt 0:00:30]} 60. Rf5 {[%emt 0:00:22]} Rd4+ {[%emt 0:00:17]} 61. Kxg5 {[%emt 0:00:17]} Kxa3 {[%emt 0:00:06]} 62. h4 {[%emt 0:00:39]} Rxb4 {[%emt 0:00:03]} 63. h5 {[%emt 0:00:27]} Kb3 {[%emt 0:00:18]} 64. h6 {[%emt 0:00:39]} Kc3 {[%emt 0:01:45]} 65. g4 {[%emt 0:00:22]} Kd3 {[%emt 0:00:24]} 66. Kh5 {[%emt 0:00:44]} Ke4 {[%emt 0:00:14]} 67. Rf7 {[%emt 0:00:36]} Ke5 {[%emt 0:00:25]} 68. h7 {[%emt 0:01:05]} Rb8 {[%emt 0:01:07]} 69. Kg6 {[%emt 0:00:20]} Ke6 {[%emt 0:00:43]} 70. Kg7 {[%emt 0:01:13]} Rc8 {[%emt 0:00:48]} 71. g5 {[%emt 0:00:29]} Rb8 {[%emt 0:01:00]} 72. g6 {[%emt 0:00:14]} Ke5 {[%emt 0:04:55]} 73. h8=Q {[%emt 0:00:13]} Rxh8 {[%emt 0:00:00]} 74. Kxh8 {[%emt 0:00:15]} Ke6 {[%emt 0:00:00]} 75. Kg8 {[%emt 0:00:33]} Ke5 {[%emt 0:00:00]} 76. Kf8 {[%emt 0:00:10]} Ke6 {[%emt 0:00:19]} 1-0

[Event "LJ Slovak Open 2022"]
[Site "Liptovsky Jan"]
[Date "2022.06.24"]
[Round "3.39"]
[White "Janouskova, Eliska"]
[Black "Petrik, Matus"]
[Result "1/2-1/2"]
[ECO "B01"]
[WhiteElo "1167"]
[BlackElo "1684"]
[Annotator "NA"]
[PlyCount "68"]
[EventDate "2022.06.23"]
[EventType "swiss"]
[EventCountry "SVK"]
[SourceTitle "playchess.com"]
[Source "ChessBase"]
[SourceQuality "1"]
[TimeControl "3600+30"]

1. e4 {[%emt 0:00:11]} d5 {[%emt 0:02:54]} 2. exd5 {[%emt 0:00:32]} Qxd5 {[%emt 0:00:02]} 3. Nc3 {[%emt 0:00:55]} Qa5 {[%emt 0:00:04]} 4. d4 {[%emt 0:01:00]} Nf6 {[%emt 0:00:15]} 5. Bd3 {[%emt 0:00:59]} c6 {[%emt 0:01:16]} 6. h3 {[%emt 0:01:12]} Nbd7 {[%emt 0:00:35]} 7. Nf3 {[%emt 0:01:08]} e6 {[%emt 0:02:57]} 8. O-O {[%emt 0:01:40]} Bd6 {[%emt 0:00:44]} 9. Re1 {[%emt 0:03:10]} O-O {[%emt 0:00:04]} 10. Be3 {[%emt 0:01:13]} Qc7 {[%emt 0:02:32]} 11. Qd2 {[%emt 0:01:59]} Nb6 {[%emt 0:03:59]} 12. Ne4 {[%emt 0:03:37]} Nxe4 {[%emt 0:05:46]} 13. Bxe4 {[%emt 0:00:08]} h6 {[%emt 0:00:05]} 14. Qe2 {[%emt 0:04:38]} Nd5 {[%emt 0:01:14]} 15. Rad1 {[%emt 0:01:26]} Nxe3 {[%emt 0:01:19]} 16. Qxe3 {[%emt 0:00:12]} Qb6 {[%emt 0:03:15]} 17. b3 {[%emt 0:01:52]} Qa5 {[%emt 0:04:37]} 18. c4 {[%emt 0:02:47]} c5 {[%emt 0:07:46]} 19. Re2 {[%emt 0:05:24]} cxd4 {[%emt 0:02:23]} 20. Nxd4 {[%emt 0:00:24]} Bc5 {[%emt 0:02:40]} 21. Qf3 {[%emt 0:03:46]} Rb8 {[%emt 0:02:20]} 22. Nb5 {[%emt 0:05:30]} Rd8 {[%emt 0:01:38]} 23. Rxd8+ {[%emt 0:00:33]} Qxd8 {[%emt 0:00:02]} 24. Re1 {[%emt 0:02:57]} Qe7 {[%emt 0:04:41]} 25. Rd1 {[%emt 0:01:42]} a6 {[%emt 0:02:47]} 26. Qg3 {[%emt 0:02:18]} e5 {[%emt 0:00:15]} 27. Nc3 {[%emt 0:00:12]} f5 {[%emt 0:06:32]} 28. Bd5+ {[%emt 0:02:39]} Kh7 {[%emt 0:00:09]} 29. Re1 {[%emt 0:02:38]} Bd6 {[%emt 0:00:15]} 30. Qe3 {[%emt 0:01:56]} e4 {[%emt 0:02:36]} 31. Ne2 {[%emt 0:00:59]} Qe5 {[%emt 0:00:45]} 32. g3 {[%emt 0:03:27]} b6 {[%emt 0:04:10]} 33. Qd2 {[%emt 0:06:10]} Bc5 {[%emt 0:01:43]} 34. b4 {[%emt 0:02:11]} Bd6 {[%emt 0:00:06]} 1/2-1/2

[Event "LJ Slovak Open 2022"]
[Site "Liptovsky Jan"]
[Date "2022.06.24"]
[Round "3.40"]
[White "Pavlov Jakub"]
[Black "Brida, Lukas"]
[Result "0-1"]
[ECO "B30"]
[WhiteElo "1000"]
[BlackElo "1673"]
[Annotator "NA RC"]
[PlyCount "114"]
[EventDate "2022.06.23"]
[EventType "swiss"]
[EventCountry "SVK"]
[SourceTitle "playchess.com"]
[Source "ChessBase"]
[SourceQuality "1"]
[TimeControl "3600+30"]

1. e4 {[%emt 0:00:06]} c5 {[%emt 0:00:07]} 2. Nf3 {[%emt 0:00:11]} Nc6 {[%emt 0:00:10]} 3. Nc3 {[%emt 0:00:12]} e5 {[%emt 0:00:10]} 4. Bc4 {[%emt 0:00:24]} Be7 {[%emt 0:00:10]} 5. d3 {[%emt 0:00:23]} d6 {[%emt 0:00:07]} 6. a3 {[%emt 0:00:47]} Nf6 {[%emt 0:00:15]} 7. Bg5 {[%emt 0:00:23]} O-O {[%emt 0:00:25]} 8. h3 {[%emt 0:00:50]} Nd7 {[%emt 0:01:49]} 9. h4 {[%emt 0:01:30]} Nb6 {[%emt 0:00:38]} 10. Bb3 {[%emt 0:01:54]} Bg4 {[%emt 0:00:20]} 11. Bxe7 {[%emt 0:00:52]} Qxe7 {[%emt 0:00:29]} 12. Nd5 {[%emt 0:02:08]} Nxd5 {[%emt 0:00:17]} 13. Bxd5 {[%emt 0:00:09]} Nd4 {[%emt 0:01:46]} 14. c3 {[%emt 0:00:10]} Bxf3 {[%emt 0:00:19]} 15. gxf3 {[%emt 0:00:13]} Ne6 {[%emt 0:00:05]} 16. Bxe6 {[%emt 0:02:43]} fxe6 {[%emt 0:01:26]} 17. Rh3 {[%emt 0:00:57]} Rf4 {[%emt 0:00:11]} 18. Qb3 {[%emt 0:00:38]} Raf8 {[%emt 0:00:55]} 19. d4 {[%emt 0:04:03]} exd4 {[%emt 0:05:21]} 20. cxd4 {[%emt 0:01:18]} d5 {[%emt 0:00:24]} 21. O-O-O {[%emt 0:01:20]} c4 {[%emt 0:00:46]} 22. Qe3 {[%emt 0:00:31]} dxe4 {[%emt 0:06:59]} 23. fxe4 {[%emt 0:00:12]} Rxf2 {[%emt 0:00:34]} 24. d5 {[%emt 0:02:35]} exd5 {[%emt 0:00:18]} 25. exd5 {[%emt 0:00:10]} Qxe3+ {[%emt 0:05:01]} 26. Rxe3 {[%emt 0:00:14]} Rd8 {[%emt 0:01:36]} 27. d6 {[%emt 0:00:15]} Rd7 {[%emt 0:00:47]} 28. Re7 {[%emt 0:04:06]} Rxe7 {[%emt 0:06:54]} 29. dxe7 {[%emt 0:00:11]} Re2 {[%emt 0:00:48]} 30. Rd7 {[%emt 0:00:07]} Kf7 {[%emt 0:00:57]} 31. e8=Q+ {[%emt 0:00:17]} Kxe8 {[%emt 0:00:06]} 32. Rxg7 {[%emt 0:00:13]} Re7 {[%emt 0:00:15]} 33. Rg4 {[%emt 0:01:17]} b5 {[%emt 0:00:52]} 34. Kc2 {[%emt 0:00:10]} Kd7 {[%emt 0:00:23]} 35. h5 {[%emt 0:00:53]} Ke6 {[%emt 0:00:49]} 36. h6 {[%emt 0:01:25]} Kf6 {[%emt 0:00:14]} 37. Kc3 {[%emt 0:00:21]} Re3+ {[%emt 0:03:06]} 38. Kb4 {[%emt 0:01:03]} Rb3+ {[%emt 0:00:53]} 39. Ka5 {[%emt 0:00:43]} Rxb2 {[%emt 0:01:41]} 40. Rg7 {[%emt 0:00:10]} Rb3 {[%emt 0:16:00]} 41. Rxh7 {[%emt 0:00:36]} Kg6 {[%emt 0:00:12]} 42. Rh8 {[%emt 0:00:09]} c3 {[%emt 0:01:53]} 43. h7 {[%emt 0:02:23]} Kg7 {[%emt 0:00:28]} 44. Ra8 {[%emt 0:01:05]} Kxh7 {[%emt 0:01:32]} 45. Rxa7+ {[%emt 0:00:11]} Kg6 {[%emt 0:00:13]} 46. Rc7 {[%emt 0:01:20]} Kf5 {[%emt 0:00:41]} 47. a4 {[%emt 0:01:00]} b4 {[%emt 0:01:08]} 48. Kb5 {[%emt 0:00:11]} Ke4 {[%emt 0:01:14]} 49. a5 {[%emt 0:00:18]} Kd3 {[%emt 0:00:36]} 50. Rd7+ {[%emt 0:01:16]} Kc2 {[%emt 0:00:20]} 51. a6 {[%emt 0:00:45]} Ra3 {[%emt 0:02:22]} 52. a7 {[%emt 0:08:37]} b3 {[%emt 0:00:55]} 53. Rh7 {[%emt 0:03:12]} b2 {[%emt 0:00:28]} 54. Rh2+ {[%emt 0:00:54]} Kb3 {[%emt 0:01:43]} 55. Rh1 {[%emt 0:00:10]} Ka2 {[%emt 0:00:18]} 56. Rh2 {[%emt 0:01:19]} Ka1 {[%emt 0:00:39]} 57. Kb4 {[%emt 0:01:59]} Rxa7 {[%emt 0:00:41]} 0-1

[Event "LJ Slovak Open 2022"]
[Site "Liptovsky Jan"]
[Date "2022.06.24"]
[Round "3.41"]
[White "Krestian, Darius"]
[Black "Ihnat, Marek"]
[Result "1-0"]
[ECO "D52"]
[WhiteElo "1659"]
[BlackElo "2045"]
[Annotator "NA RC"]
[PlyCount "53"]
[EventDate "2022.06.23"]
[EventType "swiss"]
[EventCountry "SVK"]
[SourceTitle "playchess.com"]
[Source "ChessBase"]
[SourceQuality "1"]
[TimeControl "3600+30"]

1. d4 {[%emt 0:01:58]} d5 {[%emt 0:00:11]} 2. Nf3 {[%emt 0:00:12]} e6 {[%emt 0:01:04]} 3. c4 {[%emt 0:00:18]} Nf6 {[%emt 0:00:18]} 4. Nc3 {[%emt 0:00:19]} c6 {[%emt 0:00:55]} 5. Bg5 {[%emt 0:00:13]} Nbd7 {[%emt 0:00:30]} 6. e3 {[%emt 0:00:14]} Qa5 {[%emt 0:00:23]} 7. Nd2 {[%emt 0:04:22]} Bb4 {[%emt 0:00:28]} 8. Qc2 {[%emt 0:01:10]} dxc4 {[%emt 0:02:53]} 9. Bxf6 {[%emt 0:00:15]} Nxf6 {[%emt 0:00:23]} 10. Nxc4 {[%emt 0:03:07]} Qc7 {[%emt 0:01:32]} 11. Bd3 {[%emt 0:00:59]} O-O {[%emt 0:04:04]} 12. Ne5 {[%emt 0:02:18]} Bd6 {[%emt 0:01:24]} 13. f4 {[%emt 0:01:09]} h6 {[%emt 0:04:54]} 14. O-O-O {[%emt 0:07:10]} Nd5 {[%emt 0:02:13]} 15. Nxd5 {[%emt 0:02:29]} cxd5 {[%emt 0:00:10]} 16. Qxc7 {[%emt 0:00:13]} Bxc7 {[%emt 0:00:27]} 17. h4 {[%emt 0:00:32]} Bxe5 {[%emt 0:02:54]} 18. fxe5 {[%emt 0:00:31]} Bd7 {[%emt 0:00:32]} 19. g4 {[%emt 0:00:12]} Rac8+ {[%emt 0:01:48]} 20. Kb1 {[%emt 0:00:15]} f5 {[%emt 0:01:10]} 21. exf6 {[%emt 0:03:54]} Rxf6 {[%emt 0:00:55]} 22. g5 {[%emt 0:01:30]} Rf2 {[%emt 0:02:34]} 23. gxh6 {[%emt 0:01:11]} gxh6 {[%emt 0:00:57]} 24. Rhg1+ {[%emt 0:00:16]} Kh8 {[%emt 0:00:08]} 25. Rg6 {[%emt 0:00:36]} Rh2 {[%emt 0:04:54]} 26. Rxh6+ {[%emt 0:01:14]} Kg7 {[%emt 0:00:36]} 27. Rh7+ {[%emt 0:00:24]} 1-0

[Event "LJ Slovak Open 2022"]
[Site "Liptovsky Jan"]
[Date "2022.06.24"]
[Round "3.42"]
[White "Saravanan Durga"]
[Black "Szaszak, Matej"]
[Result "1-0"]
[ECO "D35"]
[WhiteElo "1660"]
[BlackElo "1235"]
[Annotator "NA RC"]
[PlyCount "65"]
[EventDate "2022.06.23"]
[EventType "swiss"]
[EventCountry "SVK"]
[SourceTitle "playchess.com"]
[Source "ChessBase"]
[SourceQuality "1"]
[TimeControl "3600+30"]

1. d4 {[%emt 0:00:06]} d5 {[%emt 0:00:06]} 2. c4 {[%emt 0:00:14]} e6 {[%emt 0:00:10]} 3. Nc3 {[%emt 0:00:14]} Nf6 {[%emt 0:00:21]} 4. cxd5 {[%emt 0:00:06]} exd5 {[%emt 0:00:13]} 5. Bg5 {[%emt 0:00:25]} Be7 {[%emt 0:00:25]} 6. e3 {[%emt 0:01:54]} O-O {[%emt 0:00:09]} 7. Bd3 {[%emt 0:01:45]} Nbd7 {[%emt 0:00:37]} 8. Qc2 {[%emt 0:01:57]} g6 {[%emt 0:00:58]} 9. Bh6 {[%emt 0:05:21]} Re8 {[%emt 0:00:30]} 10. Nge2 {[%emt 0:07:14]} c6 {[%emt 0:01:12]} 11. h3 {[%emt 0:04:40]} Bd6 {[%emt 0:01:39]} 12. O-O-O {[%emt 0:05:51]} c5 {[%emt 0:00:12]} 13. Bb5 {[%emt 0:04:26]} a6 {[%emt 0:01:09]} 14. Bxd7 {[%emt 0:00:15]} Bxd7 {[%emt 0:00:10]} 15. g4 {[%emt 0:03:08]} cxd4 {[%emt 0:01:03]} 16. Nxd4 {[%emt 0:00:59]} Bxg4 {[%emt 0:01:06]} 17. hxg4 {[%emt 0:00:59]} Nxg4 {[%emt 0:01:45]} 18. Rdg1 {[%emt 0:02:33]} Nxh6 {[%emt 0:01:13]} 19. Rxh6 {[%emt 0:00:04]} Re6 {[%emt 0:00:42]} 20. Nxe6 {[%emt 0:00:24]} fxe6 {[%emt 0:00:18]} 21. Rgxg6+ {[%emt 0:02:15]} Kf8 {[%emt 0:00:43]} 22. Rxe6 {[%emt 0:01:52]} Be7 {[%emt 0:01:32]} 23. Qf5+ {[%emt 0:01:20]} Kg8 {[%emt 0:00:23]} 24. Qxh7+ {[%emt 0:01:12]} Kf8 {[%emt 0:00:14]} 25. Rhg6 {[%emt 0:00:23]} Ke8 {[%emt 0:00:18]} 26. Rg8+ {[%emt 0:00:24]} Kd7 {[%emt 0:00:26]} 27. Rxd8+ {[%emt 0:00:05]} Kxe6 {[%emt 0:00:45]} 28. Qg6+ {[%emt 0:00:35]} Bf6 {[%emt 0:00:20]} 29. Rxa8 {[%emt 0:01:58]} d4 {[%emt 0:00:42]} 30. Re8+ {[%emt 0:00:10]} Kd7 {[%emt 0:00:14]} 31. Qf7+ {[%emt 0:00:11]} Kc6 {[%emt 0:01:08]} 32. Qe6+ {[%emt 0:00:09]} Kc7 {[%emt 0:00:34]} 33. Rc8# {[%emt 0:00:04]} 1-0

[Event "LJ Slovak Open 2022"]
[Site "Liptovsky Jan"]
[Date "2022.06.24"]
[Round "3.43"]
[White "Lis, Maksymilian"]
[Black "Veres Alex"]
[Result "1-0"]
[ECO "A20"]
[WhiteElo "1511"]
[BlackElo "1000"]
[Annotator "NA RC"]
[PlyCount "79"]
[EventDate "2022.06.23"]
[EventType "swiss"]
[EventCountry "SVK"]
[SourceTitle "playchess.com"]
[Source "ChessBase"]
[SourceQuality "1"]
[TimeControl "3600+30"]

1. c4 {[%emt 0:00:10]} e5 {[%emt 0:00:20]} 2. g3 {[%emt 0:00:12]} Nf6 {[%emt 0:00:34]} 3. Bg2 {[%emt 0:00:05]} Bc5 {[%emt 0:00:39]} 4. e3 {[%emt 0:00:27]} Nc6 {[%emt 0:00:18]} 5. Ne2 {[%emt 0:00:08]} b6 {[%emt 0:00:19]} 6. O-O {[%emt 0:00:32]} O-O {[%emt 0:00:24]} 7. d4 {[%emt 0:00:16]} exd4 {[%emt 0:00:15]} 8. exd4 {[%emt 0:00:08]} Bd6 {[%emt 0:00:25]} 9. Nbc3 {[%emt 0:00:38]} Bb7 {[%emt 0:00:16]} 10. a3 {[%emt 0:01:26]} Na5 {[%emt 0:00:32]} 11. Bxb7 {[%emt 0:00:09]} Nxb7 {[%emt 0:00:23]} 12. b4 {[%emt 0:02:35]} a5 {[%emt 0:00:25]} 13. Rb1 {[%emt 0:00:52]} axb4 {[%emt 0:00:26]} 14. axb4 {[%emt 0:00:06]} Qe7 {[%emt 0:01:22]} 15. c5 {[%emt 0:00:17]} bxc5 {[%emt 0:00:17]} 16. bxc5 {[%emt 0:00:05]} Nxc5 {[%emt 0:00:37]} 17. dxc5 {[%emt 0:00:05]} Bxc5 {[%emt 0:00:14]} 18. Bg5 {[%emt 0:00:13]} Qe5 {[%emt 0:01:41]} 19. Bxf6 {[%emt 0:00:22]} Qxf6 {[%emt 0:00:21]} 20. Ne4 {[%emt 0:00:12]} Qe5 {[%emt 0:00:26]} 21. Nxc5 {[%emt 0:00:10]} Qxc5 {[%emt 0:00:17]} 22. Qxd7 {[%emt 0:00:26]} Rad8 {[%emt 0:00:32]} 23. Qb5 {[%emt 0:00:20]} Qe7 {[%emt 0:00:40]} 24. Nf4 {[%emt 0:00:25]} Rb8 {[%emt 0:00:28]} 25. Qxb8 {[%emt 0:00:17]} Rxb8 {[%emt 0:00:13]} 26. Rxb8+ {[%emt 0:00:09]} Qf8 {[%emt 0:00:13]} 27. Rfb1 {[%emt 0:00:15]} h6 {[%emt 0:00:26]} 28. Nd5 {[%emt 0:00:15]} g6 {[%emt 0:00:28]} 29. Rxf8+ {[%emt 0:00:14]} Kxf8 {[%emt 0:00:16]} 30. Rb8+ {[%emt 0:00:08]} Kg7 {[%emt 0:00:19]} 31. Nxc7 {[%emt 0:00:07]} h5 {[%emt 0:00:25]} 32. Kg2 {[%emt 0:00:07]} Kh6 {[%emt 0:00:19]} 33. h4 {[%emt 0:00:09]} g5 {[%emt 0:00:18]} 34. Rb6+ {[%emt 0:00:06]} Kg7 {[%emt 0:00:22]} 35. hxg5 {[%emt 0:00:08]} h4 {[%emt 0:00:28]} 36. gxh4 {[%emt 0:00:06]} f6 {[%emt 0:00:11]} 37. Rxf6 {[%emt 0:00:07]} Kg8 {[%emt 0:00:26]} 38. Ne6 {[%emt 0:00:13]} Kh7 {[%emt 0:00:35]} 39. g6+ {[%emt 0:00:16]} Kg8 {[%emt 0:00:38]} 40. Rf8# {[%emt 0:00:05]} 1-0

[Event "LJ Slovak Open 2022"]
[Site "Liptovsky Jan"]
[Date "2022.06.24"]
[Round "3.44"]
[White "Mrkvik, Jan"]
[Black "Prochazka Michal"]
[Result "1-0"]
[ECO "D02"]
[WhiteElo "1810"]
[BlackElo "1110"]
[Annotator "NA RC"]
[PlyCount "53"]
[EventDate "2022.06.23"]
[EventType "swiss"]
[EventCountry "SVK"]
[SourceTitle "playchess.com"]
[Source "ChessBase"]
[SourceQuality "1"]
[TimeControl "3600+30"]

1. d4 {[%emt 0:00:04]} Nf6 {[%emt 0:01:23]} 2. Bf4 {[%emt 0:00:05]} d5 {[%emt 0:00:29]} 3. e3 {[%emt 0:00:17]} Bf5 {[%emt 0:00:33]} 4. Nf3 {[%emt 0:00:17]} e6 {[%emt 0:00:36]} 5. c3 {[%emt 0:00:31]} Nbd7 {[%emt 0:00:35]} 6. Nbd2 {[%emt 0:00:48]} c5 {[%emt 0:01:39]} 7. Be2 {[%emt 0:01:01]} Be7 {[%emt 0:00:36]} 8. O-O {[%emt 0:00:36]} O-O {[%emt 0:00:15]} 9. Ne5 {[%emt 0:00:40]} cxd4 {[%emt 0:02:07]} 10. exd4 {[%emt 0:00:25]} Ne4 {[%emt 0:03:20]} 11. Rc1 {[%emt 0:05:31]} f6 {[%emt 0:00:25]} 12. Nd3 {[%emt 0:00:51]} Nxd2 {[%emt 0:02:54]} 13. Qxd2 {[%emt 0:00:49]} Bxd3 {[%emt 0:00:49]} 14. Bxd3 {[%emt 0:00:12]} e5 {[%emt 0:01:26]} 15. Bg3 {[%emt 0:00:30]} Bd6 {[%emt 0:06:34]} 16. Bf5 {[%emt 0:02:28]} g6 {[%emt 0:03:43]} 17. Be6+ {[%emt 0:00:11]} Kh8 {[%emt 0:01:47]} 18. Bxd5 {[%emt 0:00:05]} Qb6 {[%emt 0:05:00]} 19. Rfe1 {[%emt 0:01:56]} exd4 {[%emt 0:00:55]} 20. Re6 {[%emt 0:02:14]} dxc3 {[%emt 0:01:18]} 21. bxc3 {[%emt 0:00:45]} Ne5 {[%emt 0:01:38]} 22. Re1 {[%emt 0:03:55]} Rae8 {[%emt 0:05:00]} 23. R1xe5 {[%emt 0:00:22]} fxe5 {[%emt 0:00:17]} 24. Bxe5+ {[%emt 0:00:04]} Bxe5 {[%emt 0:04:00]} 25. Rxb6 {[%emt 0:00:04]} Bf4 {[%emt 0:02:02]} 26. Qd4+ {[%emt 0:04:19]} Be5 {[%emt 0:00:23]} 27. Qd3 {[%emt 0:05:02]} 1-0